Workbook

Sheet SPT-N Düzeltmesi
B2: TMMOB JEOLOJİ MÜHENDİSLERİ ODASI | K2: SPT-N DÜZELTMESİ
B5: PROJENİN ADI : | K5: Lütfen sorunları ve önerilerinizi gurelozdemir2@gmail.com adresine iletiniz.
B6: Pafta No : | K6: A | T6: Koordinatlar : | AG6: X | AQ6: Y | BC6: Kot | BF6: Datum
B7: Ada / Parsel No : | K7: B | AG7: 123456.2 | AQ7: 12345.3 | BC7: 525 | BF7: WGS 84
B8: Sondaj Kuyu No : | K8: SK-1 | T8: Kuyu Derinliği : | AC8: 30 | AK8: Yeraltı Suyu Seviyesi : | BC8: 3
B9: DÜZELTME FAKTÖRLERİ [Veri girişi ve seçimi yapınız] | K9: Numune Alıcı Tipi : | T9: Standart (iç tüpü olan) | AK9: Enerji Oranı (%) : | BC9: 60
K10: Sondaj Delgi Çapı : | T10: Çap 65mm-115mm arasında | AK10: SPT Kılavuz Tij Boyu (Yerden) : | BC10: 1
K11: Tokmak Tipi : | T11: Güvenli tokmak | AK11: Hesaplama Metodu : | BC11: TBDY-2018'e uygundur
B12: GW | C12: GP | D12: GM | E12: GC | F12: SW | G12: SP | H12: SM | I12: SC | J12: ML | K12: CL | L12: MH | M12: CH | N12: SW-SC | O12: SW-SM | P12: SP-SC | Q12: SP-SM | R12: GW-GC | S12: GW-GM | T12: GP-GC | U12: GP-GM | V12: OL | W12: OH | X12: Pt | Y12: - | AF12: ED 50-3° | AG12: ED 50-6° | AH12: WGS 84 | AI12: ITRF-3° | AJ12: ITRF-6°
B13: SPT ve Laboratuvar Deneylerinden Alınan Veriler [Renkli hücrelerde veri girişi veya seçim yapınız] | X13: SPT-N Düzeltmesi
B15: Sıra No | E15: Derinlik (m) | F15: SPT VERİLERİ | J15: Zemin Davranışı [Seçim yapınız] | O15: Zemin Tipi [USCS] Birleştirilmiş zemin sınıflaması | P15: İnce Tane İçeriği [İTİ] (%) | S15: gn (kN/m3) | T15: gdoygun (kN/m3) | U15: *Kıvam Limitleri | X15: Toplam gerilme σvo (kN/m2) | AB15: Efektif gerilme σ'vo (kN/m2) | AF15: *CN | AI15: CR | AL15: CS | AO15: CB | AR15: CE | AU15: N60 | AY15: N1,60
F16: 1 | G16: 2 | H16: 3 | I16: SPT - N [darbe/30 cm] | U16: Likit limit | V16: Plastik limit | W16: Plastisite indisi (PI) | AF16: Örtü Yükü Düzeltme Katsayısı | AI16: Tij Boyu Düzeltme Katsayısı | AL16: Numune Alıcı Tipi Düzeltme Katsayısı | AO16: Sondaj Delgi Çapı Düzeltme Katsayısı | AR16: Enerji Oranı Düzeltme Katsayısı | AU16: Düzeltilmiş SPT-N Değ. N60= CR*CS*CB*CE | AY16: Düzeltilmiş SPT-N Değ. N1,60= CN*N60 | BC16: SPT (N) - Derinlik Grafiği [Seçiminizi yapınız]
F17: 0 - 15 cm | G17: 15 - 30 cm | H17: 30 - 45 cm
B18: -1- | E18: -2- | F18: -3- | I18: -4- | J18: -5- | O18: -6- | P18: -7- | S18: -8- | T18: -9- | U18: -10- | X18: -11- | AB18: -12- | AF18: -13- | AI18: -14- | AL18: -15- | AO18: -16- | AR18: -17- | AU18: -18- | AY18: -19- | BC18: -20-
B19: =IF(E19>0,"1-","") -> 1- | E19: 1.5 | F19: 7 | G19: 5 | H19: 6 | I19: =IF(F19="","",IF(F19="r","refü",IF((COUNTIF(F19,"50/*"))>=1,"refü",IF((COUNTIF(G19,"50/*"))>=1,"refü",IF((COUNTIF(H19,"50/*"))>=1,"refü",IF(F19+G19>=100,"refü",IF(G19+H19>=100,"refü",G19+H19))))))) -> 11 | J19: Kohezyonsuz | O19: GP | P19: 8.5 | S19: 18 | T19: 20 | V19: np | W19: =IF(V19="NP","",IF(U19="NP","",IF(U19="","",U19-V19))) ->  | X19: =IF(E19="","",IF(E19<$BF$24,E19*S19,(($BF$24-0)*S19+(E19-$BF$24)*T19))) -> 27 | AB19: =IF(E19="","",IF($E$40<E19,"",(X19-MAX($E$19-$BF$24,0)*9.81))) -> 27 | AF19: =IF(E19="","",IF(J19="Kohezyonlu","",IF(AND(9.78*SQRT(1/AB19)<=1.7),(9.78*SQRT(1/AB19)),IF(9.78*SQRT(1/AB19)>1.7,1.7,1)))) -> 1.7 | AI19: =IF(E19="","",IF(E19+$BC$10<4,0.75,IF((E19+$BC$10)<6,0.85,IF((E19+$BC$10)<10,0.95,1)))) -> 0.75 | AL19: =IF(E19="","",IF($T$9="Standart (iç tüpü olan)",1,1.2)) -> 1 | AO19: =IF(E19="","",IF($T$10="Çap 65mm-115mm arasında",1,IF($T$10="Çap 150mm",1.05,IF($T$10="Çap 200mm",1.15)))) -> 1 | AR19: =IF(I19="","",IF(I19="r","-",$BC$9/60)) -> 1 | AU19: =IF(E19="","",IF(I19="refü","+50",IF(PRODUCT(I19,AI19,AL19,AO19,AR19)<=50,(PRODUCT(I19,AI19,AL19,AO19,AR19)),"+50"))) -> 8.25 | AY19: =IF(E19="","",IF(J19="Kohezyonlu","",IF(I19="refü","+50",IF(PRODUCT(I19,AF19,AI19,AL19,AO19,AR19)<=50,(PRODUCT(I19,AF19,AI19,AL19,AO19,AR19)),"+50")))) -> 14.025 | BC19: =E19 -> 1.5 | BD19: =IF(AU19="",NA(),IF($BF$19=2,NA(),IF($BF$19=1,IF(AU19="+50",50,AU19)))) -> 8.25 | BE19: =IF(AY19="",NA(),IF($BF$19=1,NA(),IF($BF$19=2,IF(AY19="+50",50,AY19)))) ->  | BF19: 1 | BG19: =IF(BF19=1,BG20,BG21) -> SPT-N(60)
B20: =IF(E20>0,"2-","") -> 2- | E20: 3 | F20: 8 | G20: 4 | H20: 5 | I20: =IF(F20="","",IF(F20="r","refü",IF((COUNTIF(F20,"50/*"))>=1,"refü",IF((COUNTIF(G20,"50/*"))>=1,"refü",IF((COUNTIF(H20,"50/*"))>=1,"refü",IF(F20+G20>=100,"refü",IF(G20+H20>=100,"refü",G20+H20))))))) -> 9 | J20: Kohezyonsuz | O20: GW | S20: 16.5 | T20: 13 | U20: 45 | V20: 23 | W20: 22 | X20: =IF(E20="","",IF(E20<$BF$24,X19+((E20-E19)*S20),IF($BF$24<=E19,X19+((E20-E19)*T20),IF(AND($BF$24>E19,$BF$24<=E20),(X19+(($BF$24-E19)*S20)+(E20-$BF$24)*T20),"-")))) -> 51.75 | AB20: =(IF(E20="","",(X20-MAX(E20-$BG$24,0)*9.81))) -> 51.75 | AF20: =IF(E20="","",IF(J20="Kohezyonlu","",IF(9.78*SQRT(1/AB20)<=1.7,(9.78*SQRT(1/AB20)),IF(9.78*SQRT(1/AB20)>1.7,1.7,1)))) -> 1.35951398 | AI20: =IF(E20="","",IF(E20+$BC$10<4,0.75,IF((E20+$BC$10)<6,0.85,IF((E20+$BC$10)<10,0.95,1)))) -> 0.85 | AL20: 1 | AO20: 1 | AR20: 1 | AU20: =IF(E20="","",IF(I20="refü","+50",IF(PRODUCT(I20,AI20,AL20,AO20,AR20)<=50,(PRODUCT(I20,AI20,AL20,AO20,AR20)),"+50"))) -> 7.65 | AY20: 10.40028194 | BC20: 3 | BD20: 7.65 | BF20: FALSE | BG20: SPT-N(60)
B21: =IF(E21>0,"3-","") -> 3- | E21: 4.5 | F21: 9 | G21: 5 | H21: 6 | I21: =IF(F21="","",IF(F21="r","refü",IF((COUNTIF(F21,"50/*"))>=1,"refü",IF((COUNTIF(G21,"50/*"))>=1,"refü",IF((COUNTIF(H21,"50/*"))>=1,"refü",IF(F21+G21>=100,"refü",IF(G21+H21>=100,"refü",G21+H21))))))) -> 11 | J21: Kohezyonsuz | O21: GW | P21: 5.6 | S21: 18 | T21: 16 | U21: 35 | V21: 25 | W21: 10 | X21: =IF(E21="","",IF(E21<$BF$24,X20+((E21-E20)*S21),IF($BF$24<=E20,X20+((E21-E20)*T21),IF(AND($BF$24>E20,$BF$24<=E21),(X20+(($BF$24-E20)*S21)+(E21-$BF$24)*T21),"-")))) -> 75.75 | AB21: 61.035 | AF21: =IF(E21="","",IF(J21="Kohezyonlu","",IF(9.78*SQRT(1/AB21)<=1.7,(9.78*SQRT(1/AB21)),IF(9.78*SQRT(1/AB21)>1.7,1.7,1)))) -> 1.251841602 | AI21: =IF(E21="","",IF(E21+$BC$10<4,0.75,IF((E21+$BC$10)<6,0.85,IF((E21+$BC$10)<10,0.95,1)))) -> 0.85 | AL21: 1 | AO21: 1 | AR21: 1 | AU21: 9.35 | AY21: 11.70471898 | BC21: 4.5 | BD21: 9.35 | BG21: SPT-N(1,60)
B22: =IF(E22>0,"4-","") -> 4- | E22: 6 | F22: 12 | G22: 10 | H22: 11 | I22: 21 | J22: Kohezyonsuz | O22: GW | S22: 18 | T22: 19 | U22: 41 | V22: 28 | W22: 13 | X22: =IF(E22="","",IF(E22<$BF$24,X21+((E22-E21)*S22),IF($BF$24<=E21,X21+((E22-E21)*T22),IF(AND($BF$24>E21,$BF$24<=E22),(X21+(($BF$24-E21)*S22)+(E22-$BF$24)*T22),"-")))) -> 104.25 | AB22: 74.82 | AF22: 1.130654727 | AI22: =IF(E22="","",IF(E22+$BC$10<4,0.75,IF((E22+$BC$10)<6,0.85,IF((E22+$BC$10)<10,0.95,1)))) -> 0.95 | AL22: 1 | AO22: 1 | AR22: 1 | AU22: 19.95 | AY22: =IF(E22="","",IF(J22="Kohezyonlu","",IF(I22="refü","+50",IF(PRODUCT(I22,AF22,AI22,AL22,AO22,AR22)<=50,(PRODUCT(I22,AF22,AI22,AL22,AO22,AR22)),"+50")))) -> 22.55656181 | BC22: 6 | BD22: 19.95 | BG22: =IF(BF20=TRUE,"","YASS") -> YASS
B23: =IF(E23>0,"5-","") -> 5- | E23: 7.5 | F23: 13 | G23: 8 | H23: 9 | I23: 17 | J23: Kohezyonsuz | O23: GW | S23: 17 | T23: 20 | U23: 33 | V23: 22 | W23: 11 | X23: =IF(E23="","",IF(E23<$BF$24,X22+((E23-E22)*S23),IF($BF$24<=E22,X22+((E23-E22)*T23),IF(AND($BF$24>E22,$BF$24<=E23),(X22+(($BF$24-E22)*S23)+(E23-$BF$24)*T23),"-")))) -> 134.25 | AB23: 90.105 | AF23: 1.030301683 | AI23: 0.95 | AL23: 1 | AO23: 1 | AR23: 1 | AU23: 16.15 | AY23: =IF(E23="","",IF(J23="Kohezyonlu","",IF(I23="refü","+50",IF(PRODUCT(I23,AF23,AI23,AL23,AO23,AR23)<=50,(PRODUCT(I23,AF23,AI23,AL23,AO23,AR23)),"+50")))) -> 16.63937218 | BC23: 7.5 | BD23: 16.15 | BF23: 0 | BG23: 50
B24: =IF(E24>0,"6-","") -> 6- | E24: 9 | F24: 2 | G24: 8 | H24: 10 | I24: 18 | J24: Kohezyonsuz | O24: GW | S24: 19 | T24: 20 | X24: 164.25 | AB24: 105.39 | AF24: 0.9526626805 | AI24: 1 | AL24: 1 | AO24: 1 | AR24: 1 | AU24: 18 | AY24: 17.14792825 | BC24: 9 | BD24: 18 | BF24: =IF(BF20=TRUE,E40,BC8) -> 3 | BG24: =IF(BF20=TRUE,E40,BC8) -> 3
B25: =IF(E25>0,"7-","") -> 7- | E25: 10.5 | F25: 9 | G25: 9 | H25: 11 | I25: 20 | J25: Kohezyonlu | O25: SC | P25: 10.8 | S25: 19 | T25: 20 | U25: 25 | V25: 19 | W25: 6 | X25: 194.25 | AB25: 120.675 | AI25: 1 | AL25: 1 | AO25: 1 | AR25: 1 | AU25: 20 | BC25: 10.5 | BD25: 20 | BF25: Kuyu sonu
B26: =IF(E26>0,"8-","") -> 8- | E26: 12 | F26: 11 | G26: 8 | H26: 10 | I26: 18 | J26: Kohezyonsuz | O26: GW | S26: 19 | T26: 19 | X26: 222.75 | AB26: 134.46 | AF26: 0.8434169046 | AI26: 1 | AL26: 1 | AO26: 1 | AR26: 1 | AU26: 18 | AY26: 15.18150428 | BC26: 12 | BD26: 18 | BF26: 0 | BG26: 50
B27: =IF(E27>0,"9-","") -> 9- | E27: 13.5 | F27: 16.66666667 | G27: 8 | H27: 15 | I27: 23 | J27: Kohezyonsuz | O27: GW | S27: 19 | T27: 19 | U27: 30 | V27: 19 | W27: 11 | X27: 251.25 | AB27: 148.245 | AF27: 0.8032464736 | AI27: 1 | AL27: 1 | AO27: 1 | AR27: 1 | AU27: 23 | AY27: 18.47466889 | BC27: 13.5 | BD27: 23 | BF27: =E40 -> 30 | BG27: =BF27 -> 30
B28: =IF(E28>0,"10-","") -> 10- | E28: 15 | F28: 15 | G28: 14 | H28: 12 | I28: 26 | J28: Kohezyonsuz | O28: GW | S28: 19 | T28: 19 | V28: np | X28: 279.75 | AB28: 162.03 | AF28: 0.7683182316 | AI28: 1 | AL28: 1 | AO28: 1 | AR28: 1 | AU28: 26 | AY28: 19.97627402 | BC28: 15 | BD28: 26
B29: =IF(E29>0,"11-","") -> 11- | E29: 16.5 | F29: 16.66666667 | G29: 16 | H29: 17 | I29: 33 | J29: Kohezyonsuz | O29: GW | S29: 19 | T29: 19 | X29: 308.25 | AB29: 175.815 | AF29: 0.7375829896 | AI29: 1 | AL29: 1 | AO29: 1 | AR29: 1 | AU29: 33 | AY29: 24.34023866 | BC29: 16.5 | BD29: 33 | BF29: 0 | BG29: 50
B30: =IF(E30>0,"12-","") -> 12- | E30: 18 | F30: 18 | G30: 19 | H30: 21 | I30: 40 | J30: Kohezyonsuz | O30: GW | S30: 19 | T30: 19 | X30: 336.75 | AB30: 189.6 | AF30: 0.7102638126 | AI30: 1 | AL30: 1 | AO30: 1 | AR30: 1 | AU30: 40 | AY30: 28.41055251 | BC30: 18 | BD30: 40 | BF30: =BF42 -> 8 | BG30: =BF30 -> 8
B31: =IF(E31>0,"13-","") -> 13- | E31: 19.5 | F31: r | I31: refü | J31: Kohezyonsuz | O31: GW | S31: 19 | T31: 19 | X31: 365.25 | AB31: 203.385 | AF31: 0.6857714409 | AI31: 1 | AL31: 1 | AO31: 1 | AR31: 1 | AU31: +50 | AY31: +50 | BC31: 19.5 | BD31: 50 | BF31: =BF43 -> 16 | BG31: =BF31 -> 16
B32: =IF(E32>0,"14-","") -> 14- | E32: 21 | F32: 35 | G32: 50/10 | I32: refü | J32: Kohezyonsuz | O32: GW | S32: 19 | T32: 19 | X32: 393.75 | AB32: 217.17 | AF32: 0.6636497561 | AI32: 1 | AL32: 1 | AO32: 1 | AR32: 1 | AU32: +50 | AY32: +50 | BC32: 21 | BD32: 50 | BF32: =BF44 -> 24 | BG32: =BF32 -> 24
B33: =IF(E33>0,"15-","") -> 15- | E33: 22 | F33: 50/12 | I33: refü | J33: Kohezyonsuz | O33: GW-GM | S33: 19 | T33: 19 | X33: 412.75 | AB33: 226.36 | AF33: 0.6500383992 | AI33: 1 | AL33: 1 | AO33: 1 | AR33: 1 | AU33: +50 | AY33: +50 | BC33: 22 | BD33: 50 | BF33: =BF45 -> 27 | BG33: =BF33 -> 27
B34: =IF(E34>0,"16-","") -> 16- | E34: 24 | F34: 10 | G34: 12 | H34: 50/10 | I34: refü | J34: Kohezyonsuz | O34: GW | S34: 19 | T34: 20 | X34: 452.75 | AB34: 246.74 | AF34: 0.6226142762 | AI34: 1 | AL34: 1 | AO34: 1 | AR34: 1 | AU34: +50 | AY34: +50 | BC34: 24 | BD34: 50 | BF34: =BF46 -> 30 | BG34: =BF34 -> 30
B35: =IF(E35>0,"17-","") -> 17- | E35: 25 | F35: 15 | G35: 18 | H35: 22 | I35: 40 | J35: Kohezyonsuz | O35: GW | S35: 19 | T35: 19 | X35: 471.75 | AB35: 255.93 | AF35: 0.6113335865 | AI35: 1 | AL35: =IF(E35="","",IF($T$9="Standart (iç tüpü olan)",1,1.2)) -> 1 | AO35: =IF(E35="","",IF($T$10="Çap 65mm-115mm arasında",1,IF($T$10="Çap 150mm",1.05,IF($T$10="Çap 200mm",1.15)))) -> 1 | AR35: =IF(I35="","",IF(I35="r","-",$BC$9/60)) -> 1 | AU35: 40 | AY35: 24.45334346 | BC35: 25 | BD35: 40 | BF35: Standart (iç tüpü olan) | BG35: Çap 65mm-115mm arasında | BH35: Halkalı tokmak
B36: =IF(E36>0,"18-","") -> 18- | E36: 27 | F36: 20 | G36: 22 | H36: 23 | I36: 45 | J36: Kohezyonsuz | O36: GW | S36: 20 | T36: 21 | X36: 513.75 | AB36: 278.31 | AF36: 0.5862386521 | AI36: 1 | AL36: 1 | AO36: 1 | AR36: 1 | AU36: 45 | AY36: 26.38073935 | BC36: 27 | BD36: 45 | BF36: İç tüpü olmayan | BG36: Çap 150mm | BH36: Güvenli tokmak
B37: =IF(E37>0,"19-","") -> 19- | E37: 28.5 | F37: 30 | G37: 35 | H37: 40 | I37: 75 | J37: Kohezyonsuz | O37: GW | S37: 20 | T37: 21 | X37: 545.25 | AB37: 295.095 | AF37: 0.5693219514 | AI37: 1 | AL37: 1 | AO37: 1 | AR37: 1 | AU37: +50 | AY37: 42.69914636 | BC37: 28.5 | BD37: 50 | BG37: Çap 200mm | BH37: Otomatik darbeli tokmak
B38: =IF(E38>0,"20-","") ->  | BC38: 0 | BF38: Kohezyonlu | BG38: Kohezyonsuz
B40: Þ | E40: =AC8 -> 30 | F40: Ü | G40: Kuyu Derinliği | I40: Hatalı durum | M40: Kırmızı çerçeveli kutu: Veri giriş uyarısı | U40: * Bilgi amaçlıdır. | X40: *CN düzeltmesi kohezyonlu zeminlere uygulanmamıştır. | AO40: Zemin Birimlerinin Açıklaması [Elle giriş yapınız] | BC40: Sınır çizgisi | BD40: Başl. | BE40: - | BF40: Bitiş derinliği
B42: NOT : Hesaplamaların sorumluluğu kullanıcıya aittir. Hesap cetveline ait telif hakları, 5846 sayılı Fikir ve Sanat Eserleri Kanunu gereğince TMMOB Jeoloji Mühendisleri Odasına ait olup, izin almaksızın içeriğinde herhangi bir değişiklik yapılamaz. Hesap cetveli JMO logolu kullanılmak kaydıyla ücretsiz olarak herkesin kullanımına açıktır. Ancak Oda logosunun hesap cetvelinden çıkarılarak kullanılmasının tespit edilmesi durumunda 5846 sayılı kanun gereğince ilgili kişi hakkında gerekli hukuki yollara başvurulacaktır. | AO42: mmm | BC42: =IF(BF42="","","-----") -> ----- | BD42: =IF(BF42="","",0) -> 0 | BE42: =IF(AO42="","","-") -> - | BF42: 8 | BG42: =IF(ISBLANK(BF42),"","m arası") -> m arası
AO43: kk ll | BC43: =IF(AO43="","","-..-..") -> -..-.. | BD43: =IF(BF43="","",BF42) -> 8 | BE43: =IF(AO43="","","-") -> - | BF43: 16 | BG43: =IF(ISBLANK(BF43),"","m arası") -> m arası
BC44: =IF(AO44="","","-.-.-") ->  | BD44: =IF(BF44="","",BF43) -> 16 | BE44: =IF(AO44="","","-") ->  | BF44: 24 | BG44: =IF(ISBLANK(BF44),"","m arası") -> m arası
BC45: =IF(AO45="","","- - -") ->  | BD45: 24 | BF45: 27 | BG45: =IF(ISBLANK(BF45),"","m arası") -> m arası
BC46: =IF(AO46="","","----") ->  | BD46: =IF(BF46="","",BF45) -> 27 | BE46: =IF(AI46="","","-") ->  | BF46: 30 | BG46: =IF(ISBLANK(BF46),"","m arası") -> m arası

Sheet sk-1
B2: TMMOB JEOLOJİ MÜHENDİSLERİ ODASI | K2: SPT-N DÜZELTMESİ
B5: PROJENİN ADI : | K5: Lütfen sorunları ve önerilerinizi gurelozdemir2@gmail.com adresine iletiniz.
B6: Pafta No : | K6: A | T6: Koordinatlar : | AG6: X | AQ6: Y | BC6: Kot | BF6: Datum
B7: Ada / Parsel No : | K7: B | AG7: 123456.2 | AQ7: 12345.3 | BC7: 525 | BF7: WGS 84
B8: Sondaj Kuyu No : | K8: SK-1 | T8: Kuyu Derinliği : | AC8: 30 | AK8: Yeraltı Suyu Seviyesi : | BC8: 3
B9: DÜZELTME FAKTÖRLERİ [Veri girişi ve seçimi yapınız] | K9: Numune Alıcı Tipi : | T9: Standart (iç tüpü olan) | AK9: Enerji Oranı (%) : | BC9: 60
K10: Sondaj Delgi Çapı : | T10: Çap 65mm-115mm arasında | AK10: SPT Kılavuz Tij Boyu (Yerden) : | BC10: 1
K11: Tokmak Tipi : | T11: Güvenli tokmak | AK11: Hesaplama Metodu : | BC11: TBDY-2018'e uygundur
B12: GW | C12: GP | D12: GM | E12: GC | F12: SW | G12: SP | H12: SM | I12: SC | J12: ML | K12: CL | L12: MH | M12: CH | N12: SW-SC | O12: SW-SM | P12: SP-SC | Q12: SP-SM | R12: GW-GC | S12: GW-GM | T12: GP-GC | U12: GP-GM | V12: OL | W12: OH | X12: Pt | Y12: - | AF12: ED 50-3° | AG12: ED 50-6° | AH12: WGS 84 | AI12: ITRF-3° | AJ12: ITRF-6°
B13: SPT ve Laboratuvar Deneylerinden Alınan Veriler [Renkli hücrelerde veri girişi veya seçim yapınız] | X13: SPT-N Düzeltmesi
B15: Sıra No | E15: Derinlik (m) | F15: SPT VERİLERİ | J15: Zemin Davranışı [Seçim yapınız] | O15: Zemin Tipi [USCS] Birleştirilmiş zemin sınıflaması | P15: İnce Tane İçeriği [İTİ] (%) | S15: gn (kN/m3) | T15: gdoygun (kN/m3) | U15: *Kıvam Limitleri | X15: Toplam gerilme σvo (kN/m2) | AB15: Efektif gerilme σ'vo (kN/m2) | AF15: *CN | AI15: CR | AL15: CS | AO15: CB | AR15: CE | AU15: N60 | AY15: N1,60
F16: 1 | G16: 2 | H16: 3 | I16: SPT - N [darbe/30 cm] | U16: Likit limit | V16: Plastik limit | W16: Plastisite indisi (PI) | AF16: Örtü Yükü Düzeltme Katsayısı | AI16: Tij Boyu Düzeltme Katsayısı | AL16: Numune Alıcı Tipi Düzeltme Katsayısı | AO16: Sondaj Delgi Çapı Düzeltme Katsayısı | AR16: Enerji Oranı Düzeltme Katsayısı | AU16: Düzeltilmiş SPT-N Değ. N60= CR*CS*CB*CE | AY16: Düzeltilmiş SPT-N Değ. N1,60= CN*N60 | BC16: SPT (N) - Derinlik Grafiği [Seçiminizi yapınız]
F17: 0 - 15 cm | G17: 15 - 30 cm | H17: 30 - 45 cm
B18: -1- | E18: -2- | F18: -3- | I18: -4- | J18: -5- | O18: -6- | P18: -7- | S18: -8- | T18: -9- | U18: -10- | X18: -11- | AB18: -12- | AF18: -13- | AI18: -14- | AL18: -15- | AO18: -16- | AR18: -17- | AU18: -18- | AY18: -19- | BC18: -20-
B19: =IF(E19>0,"1-","") -> 1- | E19: 1.5 | F19: 7 | G19: 5 | H19: 6 | I19: =IF(F19="","",IF(F19="r","refü",IF((COUNTIF(F19,"50/*"))>=1,"refü",IF((COUNTIF(G19,"50/*"))>=1,"refü",IF((COUNTIF(H19,"50/*"))>=1,"refü",IF(F19+G19>=100,"refü",IF(G19+H19>=100,"refü",G19+H19))))))) -> 11 | J19: Kohezyonsuz | O19: GP | P19: 8.5 | S19: 18 | T19: 20 | V19: np | W19: =IF(V19="NP","",IF(U19="NP","",IF(U19="","",U19-V19))) ->  | X19: =IF(E19="","",IF(E19<$BF$24,E19*S19,(($BF$24-0)*S19+(E19-$BF$24)*T19))) -> 27 | AB19: =IF(E19="","",IF($E$40<E19,"",(X19-MAX($E$19-$BF$24,0)*9.81))) -> 27 | AF19: =IF(E19="","",IF(J19="Kohezyonlu","",IF(AND(9.78*SQRT(1/AB19)<=1.7),(9.78*SQRT(1/AB19)),IF(9.78*SQRT(1/AB19)>1.7,1.7,1)))) -> 1.7 | AI19: =IF(E19="","",IF(E19+$BC$10<4,0.75,IF((E19+$BC$10)<6,0.85,IF((E19+$BC$10)<10,0.95,1)))) -> 0.75 | AL19: =IF(E19="","",IF($T$9="Standart (iç tüpü olan)",1,1.2)) -> 1 | AO19: =IF(E19="","",IF($T$10="Çap 65mm-115mm arasında",1,IF($T$10="Çap 150mm",1.05,IF($T$10="Çap 200mm",1.15)))) -> 1 | AR19: =IF(I19="","",IF(I19="r","-",$BC$9/60)) -> 1 | AU19: =IF(E19="","",IF(I19="refü","+50",IF(PRODUCT(I19,AI19,AL19,AO19,AR19)<=50,(PRODUCT(I19,AI19,AL19,AO19,AR19)),"+50"))) -> 8.25 | AY19: =IF(E19="","",IF(J19="Kohezyonlu","",IF(I19="refü","+50",IF(PRODUCT(I19,AF19,AI19,AL19,AO19,AR19)<=50,(PRODUCT(I19,AF19,AI19,AL19,AO19,AR19)),"+50")))) -> 14.025 | BC19: =E19 -> 1.5 | BD19: =IF(AU19="",NA(),IF($BF$19=2,NA(),IF($BF$19=1,IF(AU19="+50",50,AU19)))) -> 8.25 | BE19: =IF(AY19="",NA(),IF($BF$19=1,NA(),IF($BF$19=2,IF(AY19="+50",50,AY19)))) ->  | BF19: 1 | BG19: =IF(BF19=1,BG20,BG21) -> SPT-N(60)
B20: =IF(E20>0,"2-","") -> 2- | E20: 3 | F20: 8 | G20: 4 | H20: 5 | I20: =IF(F20="","",IF(F20="r","refü",IF((COUNTIF(F20,"50/*"))>=1,"refü",IF((COUNTIF(G20,"50/*"))>=1,"refü",IF((COUNTIF(H20,"50/*"))>=1,"refü",IF(F20+G20>=100,"refü",IF(G20+H20>=100,"refü",G20+H20))))))) -> 9 | J20: Kohezyonsuz | O20: GW | S20: 16.5 | T20: 13 | U20: 45 | V20: 23 | W20: 22 | X20: =IF(E20="","",IF(E20<$BF$24,X19+((E20-E19)*S20),IF($BF$24<=E19,X19+((E20-E19)*T20),IF(AND($BF$24>E19,$BF$24<=E20),(X19+(($BF$24-E19)*S20)+(E20-$BF$24)*T20),"-")))) -> 51.75 | AB20: =(IF(E20="","",(X20-MAX(E20-$BG$24,0)*9.81))) -> 51.75 | AF20: =IF(E20="","",IF(J20="Kohezyonlu","",IF(9.78*SQRT(1/AB20)<=1.7,(9.78*SQRT(1/AB20)),IF(9.78*SQRT(1/AB20)>1.7,1.7,1)))) -> 1.35951398 | AI20: =IF(E20="","",IF(E20+$BC$10<4,0.75,IF((E20+$BC$10)<6,0.85,IF((E20+$BC$10)<10,0.95,1)))) -> 0.85 | AL20: 1 | AO20: 1 | AR20: 1 | AU20: =IF(E20="","",IF(I20="refü","+50",IF(PRODUCT(I20,AI20,AL20,AO20,AR20)<=50,(PRODUCT(I20,AI20,AL20,AO20,AR20)),"+50"))) -> 7.65 | AY20: 10.40028194 | BC20: 3 | BD20: 7.65 | BF20: FALSE | BG20: SPT-N(60)
B21: =IF(E21>0,"3-","") -> 3- | E21: 4.5 | F21: 9 | G21: 5 | H21: 6 | I21: =IF(F21="","",IF(F21="r","refü",IF((COUNTIF(F21,"50/*"))>=1,"refü",IF((COUNTIF(G21,"50/*"))>=1,"refü",IF((COUNTIF(H21,"50/*"))>=1,"refü",IF(F21+G21>=100,"refü",IF(G21+H21>=100,"refü",G21+H21))))))) -> 11 | J21: Kohezyonsuz | O21: GW | P21: 5.6 | S21: 18 | T21: 16 | U21: 35 | V21: 25 | W21: 10 | X21: =IF(E21="","",IF(E21<$BF$24,X20+((E21-E20)*S21),IF($BF$24<=E20,X20+((E21-E20)*T21),IF(AND($BF$24>E20,$BF$24<=E21),(X20+(($BF$24-E20)*S21)+(E21-$BF$24)*T21),"-")))) -> 75.75 | AB21: 61.035 | AF21: =IF(E21="","",IF(J21="Kohezyonlu","",IF(9.78*SQRT(1/AB21)<=1.7,(9.78*SQRT(1/AB21)),IF(9.78*SQRT(1/AB21)>1.7,1.7,1)))) -> 1.251841602 | AI21: =IF(E21="","",IF(E21+$BC$10<4,0.75,IF((E21+$BC$10)<6,0.85,IF((E21+$BC$10)<10,0.95,1)))) -> 0.85 | AL21: 1 | AO21: 1 | AR21: 1 | AU21: 9.35 | AY21: 11.70471898 | BC21: 4.5 | BD21: 9.35 | BG21: SPT-N(1,60)
B22: =IF(E22>0,"4-","") -> 4- | E22: 6 | F22: 12 | G22: 10 | H22: 11 | I22: 21 | J22: Kohezyonsuz | O22: GW | S22: 18 | T22: 19 | U22: 41 | V22: 28 | W22: 13 | X22: =IF(E22="","",IF(E22<$BF$24,X21+((E22-E21)*S22),IF($BF$24<=E21,X21+((E22-E21)*T22),IF(AND($BF$24>E21,$BF$24<=E22),(X21+(($BF$24-E21)*S22)+(E22-$BF$24)*T22),"-")))) -> 104.25 | AB22: 74.82 | AF22: 1.130654727 | AI22: =IF(E22="","",IF(E22+$BC$10<4,0.75,IF((E22+$BC$10)<6,0.85,IF((E22+$BC$10)<10,0.95,1)))) -> 0.95 | AL22: 1 | AO22: 1 | AR22: 1 | AU22: 19.95 | AY22: =IF(E22="","",IF(J22="Kohezyonlu","",IF(I22="refü","+50",IF(PRODUCT(I22,AF22,AI22,AL22,AO22,AR22)<=50,(PRODUCT(I22,AF22,AI22,AL22,AO22,AR22)),"+50")))) -> 22.55656181 | BC22: 6 | BD22: 19.95 | BG22: =IF(BF20=TRUE,"","YASS") -> YASS
B23: =IF(E23>0,"5-","") -> 5- | E23: 7.5 | F23: 13 | G23: 8 | H23: 9 | I23: 17 | J23: Kohezyonsuz | O23: GW | S23: 17 | T23: 20 | U23: 33 | V23: 22 | W23: 11 | X23: =IF(E23="","",IF(E23<$BF$24,X22+((E23-E22)*S23),IF($BF$24<=E22,X22+((E23-E22)*T23),IF(AND($BF$24>E22,$BF$24<=E23),(X22+(($BF$24-E22)*S23)+(E23-$BF$24)*T23),"-")))) -> 134.25 | AB23: 90.105 | AF23: 1.030301683 | AI23: 0.95 | AL23: 1 | AO23: 1 | AR23: 1 | AU23: 16.15 | AY23: =IF(E23="","",IF(J23="Kohezyonlu","",IF(I23="refü","+50",IF(PRODUCT(I23,AF23,AI23,AL23,AO23,AR23)<=50,(PRODUCT(I23,AF23,AI23,AL23,AO23,AR23)),"+50")))) -> 16.63937218 | BC23: 7.5 | BD23: 16.15 | BF23: 0 | BG23: 50
B24: =IF(E24>0,"6-","") -> 6- | E24: 9 | F24: 2 | G24: 8 | H24: 10 | I24: 18 | J24: Kohezyonsuz | O24: GW | S24: 19 | T24: 20 | X24: 164.25 | AB24: 105.39 | AF24: 0.9526626805 | AI24: 1 | AL24: 1 | AO24: 1 | AR24: 1 | AU24: 18 | AY24: 17.14792825 | BC24: 9 | BD24: 18 | BF24: =IF(BF20=TRUE,E40,BC8) -> 3 | BG24: =IF(BF20=TRUE,E40,BC8) -> 3
B25: =IF(E25>0,"7-","") -> 7- | E25: 10.5 | F25: 9 | G25: 9 | H25: 11 | I25: 20 | J25: Kohezyonlu | O25: SC | P25: 10.8 | S25: 19 | T25: 20 | U25: 25 | V25: 19 | W25: 6 | X25: 194.25 | AB25: 120.675 | AI25: 1 | AL25: 1 | AO25: 1 | AR25: 1 | AU25: 20 | BC25: 10.5 | BD25: 20 | BF25: Kuyu sonu
B26: =IF(E26>0,"8-","") -> 8- | E26: 12 | F26: 11 | G26: 8 | H26: 10 | I26: 18 | J26: Kohezyonsuz | O26: GW | S26: 19 | T26: 19 | X26: 222.75 | AB26: 134.46 | AF26: 0.8434169046 | AI26: 1 | AL26: 1 | AO26: 1 | AR26: 1 | AU26: 18 | AY26: 15.18150428 | BC26: 12 | BD26: 18 | BF26: 0 | BG26: 50
B27: =IF(E27>0,"9-","") -> 9- | E27: 13.5 | F27: 16.66666667 | G27: 8 | H27: 15 | I27: 23 | J27: Kohezyonsuz | O27: GW | S27: 19 | T27: 19 | U27: 30 | V27: 19 | W27: 11 | X27: 251.25 | AB27: 148.245 | AF27: 0.8032464736 | AI27: 1 | AL27: 1 | AO27: 1 | AR27: 1 | AU27: 23 | AY27: 18.47466889 | BC27: 13.5 | BD27: 23 | BF27: =E40 -> 30 | BG27: =BF27 -> 30
B28: =IF(E28>0,"10-","") -> 10- | E28: 15 | F28: 15 | G28: 14 | H28: 12 | I28: 26 | J28: Kohezyonsuz | O28: GW | S28: 19 | T28: 19 | V28: np | X28: 279.75 | AB28: 162.03 | AF28: 0.7683182316 | AI28: 1 | AL28: 1 | AO28: 1 | AR28: 1 | AU28: 26 | AY28: 19.97627402 | BC28: 15 | BD28: 26
B29: =IF(E29>0,"11-","") -> 11- | E29: 16.5 | F29: 16.66666667 | G29: 16 | H29: 17 | I29: 33 | J29: Kohezyonsuz | O29: GW | S29: 19 | T29: 19 | X29: 308.25 | AB29: 175.815 | AF29: 0.7375829896 | AI29: 1 | AL29: 1 | AO29: 1 | AR29: 1 | AU29: 33 | AY29: 24.34023866 | BC29: 16.5 | BD29: 33 | BF29: 0 | BG29: 50
B30: =IF(E30>0,"12-","") -> 12- | E30: 18 | F30: 18 | G30: 19 | H30: 21 | I30: 40 | J30: Kohezyonsuz | O30: GW | S30: 19 | T30: 19 | X30: 336.75 | AB30: 189.6 | AF30: 0.7102638126 | AI30: 1 | AL30: 1 | AO30: 1 | AR30: 1 | AU30: 40 | AY30: 28.41055251 | BC30: 18 | BD30: 40 | BF30: =BF42 -> 8 | BG30: =BF30 -> 8
B31: =IF(E31>0,"13-","") -> 13- | E31: 19.5 | F31: r | I31: refü | J31: Kohezyonsuz | O31: GW | S31: 19 | T31: 19 | X31: 365.25 | AB31: 203.385 | AF31: 0.6857714409 | AI31: 1 | AL31: 1 | AO31: 1 | AR31: 1 | AU31: +50 | AY31: +50 | BC31: 19.5 | BD31: 50 | BF31: =BF43 -> 16 | BG31: =BF31 -> 16
B32: =IF(E32>0,"14-","") -> 14- | E32: 21 | F32: 35 | G32: 50/10 | I32: refü | J32: Kohezyonsuz | O32: GW | S32: 19 | T32: 19 | X32: 393.75 | AB32: 217.17 | AF32: 0.6636497561 | AI32: 1 | AL32: 1 | AO32: 1 | AR32: 1 | AU32: +50 | AY32: +50 | BC32: 21 | BD32: 50 | BF32: =BF44 -> 24 | BG32: =BF32 -> 24
B33: =IF(E33>0,"15-","") -> 15- | E33: 22 | F33: 50/12 | I33: refü | J33: Kohezyonsuz | O33: GW-GM | S33: 19 | T33: 19 | X33: 412.75 | AB33: 226.36 | AF33: 0.6500383992 | AI33: 1 | AL33: 1 | AO33: 1 | AR33: 1 | AU33: +50 | AY33: +50 | BC33: 22 | BD33: 50 | BF33: =BF45 -> 27 | BG33: =BF33 -> 27
B34: =IF(E34>0,"16-","") -> 16- | E34: 24 | F34: 10 | G34: 12 | H34: 50/10 | I34: refü | J34: Kohezyonsuz | O34: GW | S34: 19 | T34: 20 | X34: 452.75 | AB34: 246.74 | AF34: 0.6226142762 | AI34: 1 | AL34: 1 | AO34: 1 | AR34: 1 | AU34: +50 | AY34: +50 | BC34: 24 | BD34: 50 | BF34: =BF46 -> 30 | BG34: =BF34 -> 30
B35: =IF(E35>0,"17-","") -> 17- | E35: 25 | F35: 15 | G35: 18 | H35: 22 | I35: 40 | J35: Kohezyonsuz | O35: GW | S35: 19 | T35: 19 | X35: 471.75 | AB35: 255.93 | AF35: 0.6113335865 | AI35: 1 | AL35: 1 | AO35: 1 | AR35: 1 | AU35: 40 | AY35: 24.45334346 | BC35: 25 | BD35: 40 | BF35: Standart (iç tüpü olan) | BG35: Çap 65mm-115mm arasında | BH35: Halkalı tokmak
B36: =IF(E36>0,"18-","") -> 18- | E36: 27 | F36: 20 | G36: 22 | H36: 23 | I36: 45 | J36: Kohezyonsuz | O36: GW | S36: 20 | T36: 21 | X36: 513.75 | AB36: 278.31 | AF36: 0.5862386521 | AI36: 1 | AL36: 1 | AO36: 1 | AR36: 1 | AU36: 45 | AY36: 26.38073935 | BC36: 27 | BD36: 45 | BF36: İç tüpü olmayan | BG36: Çap 150mm | BH36: Güvenli tokmak
B37: =IF(E37>0,"19-","") -> 19- | E37: 28.5 | F37: 30 | G37: 35 | H37: 40 | I37: 75 | J37: Kohezyonsuz | O37: GW | S37: 20 | T37: 21 | X37: 545.25 | AB37: 295.095 | AF37: 0.5693219514 | AI37: 1 | AL37: 1 | AO37: 1 | AR37: 1 | AU37: +50 | AY37: 42.69914636 | BC37: 28.5 | BD37: 50 | BG37: Çap 200mm | BH37: Otomatik darbeli tokmak
B38: =IF(E38>0,"20-","") ->  | BC38: 0 | BF38: Kohezyonlu | BG38: Kohezyonsuz
B40: Þ | E40: =AC8 -> 30 | F40: Ü | G40: Kuyu Derinliği | I40: Hatalı durum | M40: Kırmızı çerçeveli kutu: Veri giriş uyarısı | U40: * Bilgi amaçlıdır. | X40: *CN düzeltmesi kohezyonlu zeminlere uygulanmamıştır. | AO40: Zemin Birimlerinin Açıklaması [Elle giriş yapınız] | BC40: Sınır çizgisi | BD40: Başl. | BE40: - | BF40: Bitiş derinliği
B42: NOT : Hesaplamaların sorumluluğu kullanıcıya aittir. Hesap cetveline ait telif hakları, 5846 sayılı Fikir ve Sanat Eserleri Kanunu gereğince TMMOB Jeoloji Mühendisleri Odasına ait olup, izin almaksızın içeriğinde herhangi bir değişiklik yapılamaz. Hesap cetveli JMO logolu kullanılmak kaydıyla ücretsiz olarak herkesin kullanımına açıktır. Ancak Oda logosunun hesap cetvelinden çıkarılarak kullanılmasının tespit edilmesi durumunda 5846 sayılı kanun gereğince ilgili kişi hakkında gerekli hukuki yollara başvurulacaktır. | AO42: mmm | BC42: =IF(BF42="","","-----") -> ----- | BD42: =IF(BF42="","",0) -> 0 | BE42: =IF(AO42="","","-") -> - | BF42: 8 | BG42: =IF(ISBLANK(BF42),"","m arası") -> m arası
AO43: kk ll | BC43: =IF(AO43="","","-..-..") -> -..-.. | BD43: =IF(BF43="","",BF42) -> 8 | BE43: =IF(AO43="","","-") -> - | BF43: 16 | BG43: =IF(ISBLANK(BF43),"","m arası") -> m arası
BC44: =IF(AO44="","","-.-.-") ->  | BD44: =IF(BF44="","",BF43) -> 16 | BE44: =IF(AO44="","","-") ->  | BF44: 24 | BG44: =IF(ISBLANK(BF44),"","m arası") -> m arası
BC45: =IF(AO45="","","- - -") ->  | BD45: 24 | BF45: 27 | BG45: =IF(ISBLANK(BF45),"","m arası") -> m arası
BC46: =IF(AO46="","","----") ->  | BD46: =IF(BF46="","",BF45) -> 27 | BE46: =IF(AI46="","","-") ->  | BF46: 30 | BG46: =IF(ISBLANK(BF46),"","m arası") -> m arası
